bitfinex-derivatives/quotes_ETHF0:USTF0_20260208
["timestamp","ask_amount","ask_price","bid_price","bid_amount"]
[1770562081606,10.97450363,2123.4,2122.2,14.42288926]
[1770562084309,10.97450363,2123.2,2122.2,11.62289738]
[1770562084509,10.97450363,2123.1,2122.2,11.62289738]
[1770562084709,10.97450363,2123.1,2122.1,0.24065818]
[1770562084710,10.97450363,2123.1,2122.1,0.00486818]
[1770562084911,10.97450363,2123.0,2122.1,0.00486818]
[1770562085406,10.97450363,2122.9,2121.8,14.42288926]
[1770562086315,10.97450363,2122.9,2121.8,11.62289738]
[1770562086517,10.97450363,2122.9,2121.8,11.62668044]
[1770562086815,10.97450363,2122.9,2121.8,14.42667232]
[1770562087816,10.98450363,2122.9,2121.8,14.42667232]
[1770562089114,10.98450363,2122.9,2121.8,11.62668044]
[1770562089813,10.98450363,2122.9,2121.8,14.66250232]
[1770562090219,10.98450363,2122.9,2121.9,11.62289738]
[1770562092216,0.01,2122.9,2122.2,11.62289738]
[1770562092417,0.01,2122.9,2122.2,41.81189738]
[1770562092616,0.01,2122.9,2122.3,11.62289738]
[1770562096725,10.73556089,2122.9,2122.3,11.62289738]
[1770562099429,0.01,2122.9,2122.3,11.62289738]
[1770562101631,10.73556089,2122.9,2122.3,11.62289738]
[1770562101825,10.73556089,2122.9,2122.2,0.23578]
[1770562102026,10.73556089,2122.9,2122.3,11.33737368]
[1770562102431,0.01,2122.9,2122.3,11.33737368]
[1770562102731,10.73556089,2122.9,2122.3,11.33737368]
[1770562103729,0.00513183,2122.9,2122.3,11.33737368]
[1770562104329,10.72556089,2123.3,2122.3,11.57313368]
[1770562104535,10.72556089,2123.3,2122.4,14.13736556]
[1770562105937,10.72556089,2123.3,2122.4,11.33737368]
[1770562106428,10.72556089,2123.3,2122.4,14.13736556]
[1770562109331,10.72556089,2123.3,2122.5,14.13736556]
[1770562114840,10.72556089,2123.3,2122.5,11.33737368]
[1770562115344,10.72556089,2123.3,2122.4,2.79999188]
[1770562115540,10.72556089,2123.3,2122.4,14.13736556]
[1770562116144,10.72556089,2123.3,2122.5,2.79999188]
[1770562116344,10.72556089,2123.3,2122.6,11.33737368]
[1770562119246,10.72556089,2123.2,2122.4,14.37312556]
[1770562119846,10.72556089,2123.2,2122.4,3.03575188]
[1770562120338,10.72556089,2123.2,2122.4,14.37312556]
[1770562120738,10.72556089,2123.1,2122.4,11.57313368]
[1770562120944,10.72556089,2123.1,2122.4,11.33737368]
[1770562121943,10.72556089,2122.8,2121.9,11.33737368]
[1770562123138,2.79271971,2122.6,2121.8,11.34115674]
[1770562123339,10.72556089,2122.5,2121.8,11.34115674]
[1770562123540,10.73146154,2122.5,2121.8,11.34115674]
[1770562132854,11.70405042,2122.5,2121.8,11.34115674]
[1770562140468,11.70405042,2122.5,2121.2,10.94043122]
[1770562140469,14.49086948,2122.2,2121.2,10.94043122]
[1770562141360,14.49086948,2122.2,2121.2,10.9446703]
[1770562141772,11.69814977,2122.2,2121.2,10.9446703]
[1770562151078,14.49086948,2122.2,2121.2,10.9446703]
[1770562160287,11.0678615,2121.9,2121.2,0.00423908]
[1770562161077,11.0678615,2121.8,2121.2,0.00423908]
[1770562161286,11.0678615,2121.8,2121.0,11.64706473]
[1770562162385,11.0678615,2121.8,2121.0,11.65283712]
[1770562162790,11.0678615,2121.8,2121.0,11.41692712]
[1770562163386,11.0678615,2121.7,2121.0,11.41692712]
[1770562163590,11.0678615,2121.7,2121.0,0.00577239]
[1770562164487,11.0678615,2121.6,2121.0,0.00577239]
[1770562164687,11.0678615,2121.6,2120.6,11.76584701]
[1770562164688,11.0678615,2121.5,2120.6,11.76584701]
[1770562164889,11.0678615,2121.4,2120.6,11.76584701]
[1770562165589,11.0678615,2121.4,2120.6,11.77191536]
[1770562167592,11.0678615,2121.9,2120.8,11.64708473]
[1770562168188,11.0678615,2121.9,2121.0,11.41115473]
[1770562171297,11.0678615,2121.9,2121.0,11.64706473]
[1770562174502,41.80542422,2122.3,2121.0,11.64706473]
[1770562174503,11.0678615,2122.0,2121.0,11.64706473]
[1770562175398,11.0678615,2122.0,2121.2,11.41115473]
[1770562178999,11.0678615,2122.0,2121.1,11.64705473]
[1770562184416,2.79271971,2122.2,2121.5,11.41115473]
[1770562184712,11.0678615,2122.3,2121.5,11.41115473]
[1770562185509,11.0678615,2122.3,2121.6,0.23585]
[1770562185810,11.0678615,2122.3,2121.7,11.70706721]
[1770562187810,11.24222748,2122.5,2121.7,11.70706721]
[1770562200220,11.24222748,2122.5,2121.6,0.23585]
[1770562200423,11.24222748,2122.5,2121.3,15.93435727]
[1770562200627,11.24222748,2122.5,2121.4,11.70706721]
[1770562200927,11.24222748,2122.5,2121.9,11.70706721]
[1770562203125,11.22843294,2122.6,2121.9,11.94288721]
[1770562204114,11.23436074,2122.6,2121.9,11.94288721]
[1770562206022,0.0059278,2122.6,2121.9,11.94288721]
[1770562208126,11.24225463,2122.6,2121.9,11.94288721]
[1770562208521,0.0059278,2122.6,2121.9,11.94288721]
[1770562209528,11.24225463,2122.6,2121.9,11.94288721]
[1770562209719,0.0059278,2122.6,2121.9,11.94288721]
[1770562209918,0.0059278,2122.6,2122.1,11.70706721]
[1770562210118,0.0059278,2122.6,2122.1,11.71306195]
[1770562210322,2.79271971,2123.2,2122.5,11.70706721]
[1770562210323,11.23632683,2123.2,2122.5,11.70706721]
[1770562211330,11.24021685,2123.2,2122.5,11.70706721]
[1770562222844,11.24021685,2123.2,2122.5,11.94281721]
[1770562232542,11.24021685,2123.2,2122.5,16.17010727]
[1770562232741,11.24021685,2123.2,2122.6,11.01771027]
[1770562233145,0.00389002,2123.2,2122.6,11.01771027]
[1770562234353,0.00389002,2123.2,2122.6,11.25345027]
[1770562235246,2.79271971,2123.7,2122.9,11.25341027]
[1770562235247,11.52734553,2123.7,2122.9,11.25341027]
[1770562235954,11.52734553,2123.7,2123.1,11.01771027]
[1770562236152,11.5310501,2123.7,2123.1,11.01771027]
[1770562237043,0.00370457,2123.7,2123.1,11.01771027]
[1770562237753,11.5310501,2123.7,2123.1,11.01771027]
[1770562238454,11.5310501,2123.7,2123.0,0.23569]
[1770562238755,11.5310501,2123.7,2123.0,11.25340027]
[1770562238953,11.5310501,2123.7,2123.0,0.23569]
[1770562240551,11.5310501,2123.7,2123.0,11.25340027]
[1770562242654,11.5310501,2123.7,2123.0,0.23569]
[1770562243549,11.5310501,2123.7,2122.7,15.24500033]
[1770562243945,14.32376981,2123.7,2122.7,11.01771027]
[1770562244152,2.79271971,2123.6,2122.7,11.01771027]
[1770562244351,11.52734553,2123.5,2122.7,11.01771027]
[1770562244657,11.52734553,2123.5,2122.6,41.47671027]
[1770562245256,11.52734553,2123.5,2122.7,10.90567734]
[1770562250563,11.52734553,2123.5,2122.8,10.90567734]
[1770562251264,2.79642428,2123.7,2122.8,11.14138734]
[1770562251465,2.79642428,2123.7,2122.9,10.90567734]
[1770562251466,11.47780212,2123.6,2122.9,10.90567734]
[1770562251655,0.00370457,2123.7,2123.1,10.90567734]
[1770562252360,0.00370457,2123.7,2123.2,10.90567734]
[1770562252860,0.00370457,2123.7,2123.2,15.1329674]
[1770562253059,0.00370457,2123.7,2123.3,10.90567734]
[1770562256266,11.48150669,2123.7,2123.3,10.90567734]
[1770562258972,11.48150669,2123.7,2123.2,10.90567734]
[1770562262364,2.79271971,2124.1,2123.0,0.23569]
[1770562262365,11.47780212,2124.0,2123.4,10.90567734]
[1770562263470,11.48367645,2124.0,2123.4,10.90567734]
[1770562263771,0.00587433,2124.0,2123.4,10.90567734]
[1770562264373,11.48367645,2124.0,2123.4,10.90567734]
[1770562265878,11.48367645,2124.0,2123.4,11.2293182]
[1770562268274,0.00587433,2124.0,2123.4,11.4649682]
[1770562269173,0.00587433,2124.0,2123.6,10.90567734]
[1770562269387,0.00587433,2124.0,2123.6,10.91005198]
[1770562270079,11.47780212,2124.8,2124.0,10.90567734]
[1770562270276,11.47780212,2124.8,2124.1,10.90567734]
[1770562270675,11.47780212,2124.8,2124.1,11.14124734]
[1770562271076,11.48153445,2124.8,2124.1,11.14124734]
[1770562271282,0.00373233,2124.8,2124.1,11.14124734]
[1770562273276,0.00373233,2124.8,2124.0,34.67829006]
[1770562273277,41.80542422,2125.9,2125.1,8.09193543]
[1770562273583,11.47780212,2126.1,2125.2,15.476]
[1770562274377,11.48288512,2126.1,2125.2,15.48103124]
[1770562275080,11.48288512,2126.1,2125.3,6.06534211]
[1770562275278,11.48288512,2126.1,2125.4,6.05626951]
[1770562275976,0.005083,2126.1,2125.4,6.05626951]
[1770562276684,11.13220467,2126.1,2125.4,6.05626951]
[1770562276893,0.005083,2126.1,2125.4,6.05626951]
[1770562277283,11.12712167,2126.6,2125.5,12.516298]
[1770562277486,11.12712167,2126.6,2125.6,6.36576782]
[1770562278187,11.13240866,2126.6,2125.3,6.29012373]
[1770562281593,11.13240866,2126.6,2125.3,6.52556373]
[1770562285590,11.12712167,2126.3,2124.4,9.41481453]
[1770562285796,0.00528699,2126.6,2124.7,6.61260202]
[1770562285797,11.36248167,2126.1,2124.7,6.61260202]
[1770562285987,11.36248167,2126.1,2124.3,6.61260202]
[1770562286490,11.12712167,2125.9,2124.3,6.61260202]
[1770562286694,11.36253167,2125.6,2124.3,0.00582575]
[1770562287799,0.23542,2125.5,2124.3,0.00582575]
[1770562287996,11.12712167,2125.4,2124.3,0.00582575]
[1770562289502,11.12712167,2125.4,2123.9,6.22281247]
[1770562290703,11.12712167,2125.4,2124.1,6.38792734]
[1770562291401,11.12712167,2125.4,2124.6,6.38792734]
[1770562291601,25.758,2126.2,2124.6,6.38792734]
[1770562291602,11.12712167,2126.1,2124.6,6.38792734]
[1770562292808,11.12712167,2126.1,2124.6,6.62343734]
[1770562293015,11.12712167,2126.1,2124.1,2.80221251]
[1770562293016,11.12712167,2126.1,2124.8,6.31447805]
[1770562296012,11.12712167,2126.1,2124.2,2.80221251]
[1770562296013,11.12712167,2125.8,2124.3,6.33994098]
[1770562296215,11.12712167,2125.6,2124.1,6.57551098]
[1770562296411,11.12712167,2125.4,2124.1,6.33994098]
[1770562298812,11.12712167,2125.4,2123.9,0.00520625]
[1770562298813,11.12712167,2125.4,2123.9,6.32046666]
[1770562299015,11.12712167,2125.2,2123.9,6.32046666]
[1770562299419,11.12712167,2125.2,2123.9,0.00520625]
[1770562302016,11.12712167,2125.2,2123.9,6.26681197]
[1770562310029,11.12712167,2125.2,2123.9,0.00520625]
[1770562310327,11.12712167,2125.2,2123.9,3.89920625]
[1770562310516,11.12712167,2125.2,2123.9,10.18366258]
[1770562311327,10.58165809,2125.1,2123.9,10.18366258]
[1770562311528,10.58564923,2125.1,2124.0,3.894]
[1770562312126,10.58564923,2125.1,2124.0,10.2463404]
[1770562313528,10.58564923,2125.1,2124.0,3.894]
[1770562314330,10.58165809,2125.0,2124.0,3.894]
[1770562314931,10.58165809,2125.0,2124.1,6.33953117]
[1770562316133,10.58165809,2125.0,2124.2,6.30591918]
[1770562324628,10.58165809,2125.0,2124.1,0.23557]
[1770562324629,10.58564923,2125.1,2124.4,6.27653052]
[1770562326031,10.58564923,2125.1,2124.5,6.2590744]
[1770562326229,10.58564923,2125.1,2124.6,6.2590744]
[1770562326629,0.00399114,2125.1,2124.6,6.2590744]
[1770562329837,10.58564923,2125.1,2124.4,9.18290354]
[1770562330040,10.58564923,2125.1,2124.4,6.35113942]
[1770562333837,10.58564923,2125.1,2124.5,3.894]
[1770562334340,10.58564923,2125.1,2124.6,6.32640312]
[1770562337342,10.58564923,2125.1,2124.5,3.894]
[1770562337642,10.58564923,2125.1,2124.2,4.22729006]
[1770562337643,10.58564923,2125.1,2124.2,10.12855796]
[1770562342148,10.69335264,2125.0,2124.2,10.12855796]
[1770562342645,10.69335264,2125.0,2124.2,6.32966857]
[1770562346450,10.69734378,2125.1,2124.3,6.88441835]
[1770562348549,10.69734378,2125.1,2124.5,6.87136962]
[1770562350349,10.69734378,2125.1,2124.4,3.79888939]
[1770562350553,13.51197465,2124.8,2123.9,2.8237371]
[1770562350755,10.69335264,2124.7,2123.9,6.8510879]
[1770562351350,2.81862201,2124.9,2124.0,6.84588165]
[1770562351551,10.69335264,2124.8,2124.0,6.84588165]
[1770562357051,10.69335264,2124.8,2123.9,2.8237371]
[1770562357365,10.69335264,2124.7,2123.9,9.91862474]
[1770562358360,10.69335264,2124.7,2124.0,7.11345516]
[1770562360765,10.69335264,2124.7,2123.9,2.8237371]
[1770562360965,10.69335264,2124.7,2123.9,0.00520625]
[1770562361363,10.69335264,2124.7,2123.9,7.11278995]
[1770562362260,10.69335264,2124.7,2123.9,9.9313208]
[1770562364157,10.69335264,2124.7,2123.9,2.8237371]
[1770562364367,10.69335264,2124.4,2123.9,0.00520625]
[1770562364566,10.69335264,2124.3,2123.9,0.00520625]
[1770562364964,11.46951673,2124.5,2123.9,7.13789763]
[1770562366064,11.46951673,2124.6,2123.9,7.13789763]
[1770562368667,11.46951673,2125.0,2124.1,7.10671001]
[1770562369264,11.46951673,2125.0,2124.3,7.10671001]
[1770562371370,14.28813874,2125.4,2124.4,7.26203158]
[1770562371571,11.46951673,2125.4,2124.5,7.02649158]
[1770562371765,11.46951673,2125.4,2124.6,7.02649158]
[1770562372366,11.47289877,2125.4,2124.6,7.02649158]
[1770562372772,11.47289877,2125.4,2124.7,7.03757989]
[1770562372966,0.00338204,2125.4,2124.7,7.03757989]
[1770562373274,11.47289877,2125.4,2124.7,7.03757989]
[1770562373767,0.00338204,2125.4,2124.9,7.03757989]
[1770562374074,11.46951673,2125.7,2124.9,7.03757989]
[1770562374971,11.47469663,2125.7,2124.9,7.03757989]
[1770562375473,11.47469663,2125.7,2124.9,7.27305989]
[1770562377674,11.47469663,2125.7,2125.1,6.81807114]
[1770562381481,0.0051799,2125.7,2125.1,6.81807114]
[1770562381981,11.47469663,2125.7,2125.1,6.81807114]
[1770562383581,11.47469663,2125.7,2125.1,7.67779691]
[1770562385181,11.47469663,2125.7,2125.1,0.85972577]
[1770562385483,11.47469663,2125.7,2125.1,7.77083722]
[1770562385876,11.47469663,2125.7,2125.1,0.85972577]
[1770562386077,11.47469663,2125.7,2124.7,7.76204551]
[1770562387886,11.47469663,2125.7,2124.7,7.99755551]
[1770562391091,11.47469663,2125.7,2124.7,0.23551]
[1770562391292,11.47469663,2125.7,2124.7,7.9270195]
[1770562396195,14.29331864,2125.7,2124.7,7.9270195]
[1770562398296,11.26411271,2125.5,2124.7,7.9270195]
[1770562399189,11.26411271,2125.5,2124.7,10.74555035]
[1770562399692,11.26411271,2125.5,2124.7,3.05404085]
[1770562399903,14.08273472,2125.4,2124.3,2.81853085]
[1770562400193,2.81862201,2125.0,2124.0,10.3859936]
[1770562400399,11.26411271,2124.9,2124.0,7.56746275]
[1770562401393,11.26411271,2124.9,2123.9,2.8237371]
[1770562401594,11.26411271,2124.9,2123.9,10.35122077]
[1770562401795,11.26411271,2124.9,2124.0,7.52748367]
[1770562402801,11.26411271,2124.9,2124.0,7.52748367]
[1770562404498,11.26411271,2124.9,2123.9,0.00520625]
[1770562404699,11.26411271,2124.8,2123.6,7.27547741]
[1770562404901,11.26411271,2124.7,2123.6,7.27547741]
[1770562405806,11.26411271,2124.7,2123.6,7.27937158]
[1770562410010,14.08273472,2124.7,2123.6,0.00389417]
[1770562410211,14.08273472,2124.6,2123.6,0.00389417]
[1770562410514,11.26411271,2124.5,2123.6,0.00389417]
[1770562414214,11.26411271,2124.5,2123.6,7.35762026]
[1770562416915,11.26411271,2124.5,2123.6,0.00389417]
[1770562418516,11.26411271,2124.5,2123.6,7.37517026]
[1770562420924,11.26411271,2124.8,2123.8,7.33304867]
[1770562424815,11.26411271,2124.8,2124.0,7.26863698]
[1770562428317,11.26411271,2124.8,2123.9,3.894]
[1770562428722,11.26411271,2124.8,2123.9,11.13920884]
[1770562429224,11.26411271,2124.8,2123.9,7.24520884]
[1770562429720,14.06567677,2124.8,2123.9,2.80407451]
[1770562430022,14.39367184,2124.7,2123.8,7.24520884]
[1770562430323,14.39367184,2124.7,2123.8,10.04928335]
[1770562430526,14.39367184,2124.7,2123.9,7.26715641]
[1770562439227,14.39367184,2124.6,2123.6,7.03525874]
[1770562439528,11.59210778,2124.4,2123.7,7.35899508]
[1770562440324,11.59210778,2124.4,2123.6,10.16220219]
[1770562440727,11.59210778,2124.4,2123.7,7.35423351]
[1770562441125,11.59210778,2124.4,2123.6,10.16220219]
[1770562441527,11.59210778,2124.4,2123.6,7.35812768]
[1770562441933,14.39367184,2124.4,2123.6,7.35812768]
[1770562442124,11.59210778,2124.4,2123.6,7.35812768]
[1770562442327,11.59210778,2124.4,2123.7,7.39019454]
[1770562444324,14.39367184,2124.5,2123.7,7.39019454]
[1770562444532,11.59210778,2124.5,2123.9,7.35956271]
[1770562445127,14.39367184,2124.5,2123.7,7.35956271]
[1770562446624,14.39367184,2124.5,2123.6,10.15541276]
[1770562446819,14.39367184,2124.5,2123.6,2.80796868]
[1770562447020,14.39367184,2124.5,2123.6,10.15541276]
[1770562447223,14.39367184,2124.5,2123.7,7.34744408]
[1770562448524,11.59210778,2124.1,2123.6,0.00389417]
[1770562448729,11.59651945,2124.1,2123.6,0.00389417]
[1770562448927,11.59651945,2124.1,2123.3,2.80407451]
[1770562449129,11.59210778,2123.9,2123.1,10.17123661]
[1770562449331,14.39367184,2123.9,2123.1,7.3671621]
[1770562449536,14.39367184,2123.9,2123.0,2.80407451]
[1770562449834,11.59210778,2123.7,2122.9,10.17123661]
[1770562450125,11.59210778,2123.7,2122.9,10.17588598]
[1770562450332,11.59210778,2123.7,2122.9,7.37181147]
[1770562451724,11.59210778,2123.7,2122.9,0.31210884]
[1770562453031,11.59210778,2123.7,2122.9,0.00464937]
[1770562453032,14.39367184,2123.7,2122.9,0.00464937]
[1770562454228,11.59210778,2123.7,2122.9,0.00464937]
[1770562454424,11.59210778,2123.7,2122.9,0.32666149]
[1770562455033,11.59210778,2123.7,2122.8,7.31214431]
[1770562455034,14.03041531,2123.5,2122.5,7.34459133]
[1770562455237,11.22885125,2123.5,2122.5,7.34459133]
[1770562456033,11.22885125,2123.5,2122.5,7.34871226]
[1770562456332,2.80156406,2123.9,2122.5,2.80819544]
[1770562456536,13.44821815,2124.0,2123.1,7.63743965]
[1770562456731,10.64665409,2124.0,2123.1,7.63743965]
[1770562457238,0.00441167,2124.1,2123.3,7.63743965]
[1770562457239,10.65106576,2124.1,2123.3,7.63743965]
[1770562460140,10.65106576,2124.1,2123.5,7.6594635]
[1770562463448,10.65106576,2124.1,2123.4,7.661905]
[1770562468246,10.65106576,2124.1,2123.2,0.23567]
[1770562468454,10.65106576,2124.1,2123.3,7.60145679]
[1770562468952,10.65106576,2124.1,2123.3,7.83710679]
[1770562469153,10.65106576,2124.1,2123.4,7.60145679]
[1770562469954,10.65106576,2124.1,2123.5,7.60145679]
[1770562470150,10.64665409,2124.6,2123.5,7.60145679]
[1770562470351,10.64665409,2124.6,2123.7,7.61032645]
[1770562471055,10.64665409,2124.5,2123.6,11.50432645]
[1770562471649,10.64665409,2124.5,2123.7,7.61032645]
[1770562478561,10.64665409,2124.5,2123.7,7.84593645]
[1770562478860,10.65263392,2124.6,2123.8,7.77034289]
[1770562479062,10.65263392,2124.6,2123.7,0.23561]
[1770562479260,10.65263392,2124.6,2123.7,8.00595289]
[1770562483062,10.65263392,2124.6,2123.7,10.81697261]
[1770562483262,10.65263392,2124.6,2123.8,7.76567575]
[1770562484459,10.65263392,2124.6,2123.8,8.00127575]
[1770562485165,10.65263392,2124.6,2123.9,7.79988098]
[1770562486461,10.65263392,2124.6,2124.0,7.80748442]
[1770562486660,10.65263392,2124.6,2124.0,7.81163374]
[1770562489069,10.65263392,2124.6,2124.0,0.00414932]
[1770562489366,10.65263392,2124.6,2124.0,7.82437889]
[1770562490666,11.23604393,2124.8,2124.0,7.82437889]
[1770562491771,11.24119218,2124.8,2124.0,7.82437889]
[1770562492873,11.24119218,2124.8,2124.0,0.00414932]
[1770562493174,11.24119218,2124.8,2124.0,8.01992475]
[1770562494973,11.24119218,2124.8,2124.0,11.91392475]
[1770562498071,11.23604393,2124.7,2124.0,11.91392475]
[1770562499673,11.23604393,2124.7,2124.1,7.97838608]
[1770562500275,11.23604393,2124.7,2124.2,7.97529498]
[1770562500976,11.24119218,2124.8,2124.2,7.97529498]
[1770562504683,11.24119218,2124.8,2124.3,7.96855674]
[1770562506787,11.23604393,2124.6,2124.0,0.00414932]
[1770562507389,11.23604393,2124.5,2123.7,12.98414362]
[1770562507784,11.23604393,2124.5,2123.6,4.21217781]
[1770562507984,11.23604393,2124.5,2123.6,12.98414362]
[1770562508186,11.23604393,2124.4,2123.6,12.98414362]
[1770562508384,11.23604393,2124.4,2123.7,8.87144666]
[1770562512588,11.23604393,2124.4,2123.7,12.76544666]
[1770562513792,11.23604393,2124.4,2123.7,3.894]
[1770562514292,11.23604393,2124.4,2123.7,12.75859402]
[1770562515193,11.23604393,2124.4,2123.7,3.894]
[1770562516393,11.23604393,2124.4,2123.7,12.69534389]
[1770562518489,11.23604393,2124.4,2123.7,8.80134389]
[1770562519894,14.12590954,2124.6,2123.7,8.80134389]
[1770562520192,42.1252852,2124.7,2123.9,8.99892446]
[1770562520193,14.12590954,2124.7,2123.9,8.99892446]
[1770562525303,14.12590954,2124.7,2123.9,0.23559]
[1770562526304,14.12590954,2124.7,2123.9,8.89824148]
[1770562526803,11.30526954,2124.7,2123.9,8.89824148]
[1770562529701,11.30526954,2124.7,2124.0,8.62749535]
[1770562530298,11.30526954,2124.7,2124.1,8.64422795]
[1770562531705,11.30526954,2124.7,2124.0,8.10617781]
[1770562532001,11.30526954,2124.7,2124.0,16.75040576]
[1770562532204,11.30526954,2124.7,2124.1,8.62998186]
[1770562537502,11.30526954,2124.7,2124.3,8.61495391]
[1770562540011,11.31041779,2124.8,2124.3,8.61495391]
[1770562540505,11.31041779,2124.8,2124.2,3.894]
[1770562540710,11.31041779,2124.8,2124.2,12.52553196]
[1770562542013,11.31041779,2124.8,2124.3,3.894]
[1770562542514,11.31041779,2124.8,2124.4,8.62319126]
[1770562543808,11.31041779,2124.8,2124.3,12.51719126]
[1770562544309,11.31041779,2124.8,2124.3,3.894]
[1770562544514,14.13105779,2124.8,2124.0,0.23558]
[1770562545013,14.13105779,2124.8,2123.8,2.44]
[1770562545413,14.13105779,2124.8,2123.7,15.35289514]
[1770562545414,11.63684752,2124.6,2123.7,15.35289514]
[1770562546008,14.45748752,2124.4,2123.6,0.00556433]
[1770562546613,11.63684752,2124.1,2123.2,14.33241595]
[1770562546803,11.63684752,2123.9,2123.0,4.21217781]
[1770562547004,11.63684752,2123.9,2122.9,5.85190642]
[1770562547005,14.45748752,2123.9,2122.9,4.44787781]
[1770562547211,11.63684752,2123.7,2122.9,0.2357]
[1770562547608,11.63684752,2123.7,2122.9,0.24052899]
[1770562548209,11.63684752,2123.7,2122.9,0.00482899]
[1770562548413,11.63684752,2123.7,2122.9,0.00198421]
[1770562548717,11.63684752,2123.7,2122.9,11.14270154]
[1770562550221,11.63684752,2123.7,2122.9,0.00198421]
[1770562559128,11.62684752,2123.7,2122.9,0.00198421]
[1770562560232,11.62684752,2123.7,2122.5,11.45065716]
[1770562560433,14.44748752,2123.7,2122.5,0.30993983]
[1770562560632,11.63684752,2123.5,2122.3,11.14071733]
[1770562561336,11.63684752,2123.5,2122.3,11.14470102]
[1770562562329,14.45748752,2123.3,2122.3,0.00398369]
[1770562562626,14.46189421,2123.3,2122.3,0.00398369]
[1770562563138,11.63684752,2123.1,2122.2,0.36352193]
[1770562563633,11.63684752,2123.1,2122.1,11.14071733]
[1770562564237,11.63684752,2123.1,2122.1,0.00343537]
[1770562564424,11.63684752,2123.1,2122.1,0.35741924]
[1770562566042,11.63684752,2123.1,2122.1,0.00343537]
[1770562566538,11.63684752,2123.1,2121.7,11.14071733]
[1770562567342,11.63684752,2123.1,2121.7,11.4970799]
[1770562569647,14.45748752,2123.1,2121.7,11.4970799]
[1770562569940,14.69316752,2123.1,2121.7,11.4970799]
[1770562570141,11.63684752,2123.0,2121.7,11.4970799]
[1770562571046,11.63684752,2122.8,2121.7,0.35636257]
[1770562572037,14.69320752,2122.8,2121.7,0.00350805]
[1770562572344,11.63684752,2122.5,2121.2,11.14071733]
[1770562572643,11.63684752,2122.3,2121.2,11.14071733]
[1770562573138,11.63684752,2122.3,2121.2,11.14583137]
[1770562573744,11.63684752,2122.3,2121.2,11.50805729]
[1770562575245,11.63684752,2122.3,2121.4,10.9452354]
[1770562576039,10.93988566,2122.7,2121.7,10.9452354]
[1770562578343,13.76052566,2123.0,2122.1,10.9452354]
[1770562578543,10.93988566,2123.0,2122.1,10.9452354]
[1770562584451,10.93988566,2123.2,2122.3,10.9452354]
[1770562587856,0.00440669,2123.3,2122.3,11.1810054]
[1770562588253,10.94429235,2123.3,2122.3,11.1810054]
[1770562588556,10.94429235,2123.3,2122.4,10.9452354]
[1770562588748,0.00440669,2123.3,2122.4,11.1809954]
[1770562588949,0.00440669,2123.3,2122.6,10.9452354]
[1770562589956,10.94429235,2123.3,2122.6,10.9452354]
[1770562591351,10.93988566,2123.2,2122.3,10.9452354]
[1770562592259,10.94429235,2123.3,2122.5,10.9452354]
[1770562596064,10.94429235,2123.3,2122.4,11.1809954]
[1770562600764,10.94429235,2123.3,2122.4,10.9452354]
[1770562600963,0.00440669,2123.3,2122.7,10.9452354]
[1770562601169,10.94429235,2123.3,2122.7,10.95064138]
[1770562606571,10.68085203,2123.6,2122.8,11.49541503]
[1770562607469,10.68422876,2123.6,2122.8,11.49541503]
[1770562607664,10.68422876,2123.6,2122.8,14.29235975]
[1770562609360,10.68422876,2123.6,2122.8,14.52806975]
[1770562609561,10.68422876,2123.6,2122.9,11.49541503]
[1770562610968,0.00337673,2123.6,2122.9,11.49541503]
[1770562611171,13.50149203,2123.9,2123.1,11.49541503]
[1770562611674,10.68085203,2123.8,2123.1,11.49541503]
[1770562612267,10.68629983,2123.8,2123.1,11.49541503]
[1770562615373,10.68629983,2123.8,2123.0,0.23569]
[1770562615578,10.68085203,2123.7,2123.0,0.23569]
[1770562616076,10.68085203,2123.7,2123.0,11.73110503]
[1770562619779,10.68085203,2123.9,2123.3,11.49541503]
[1770562620870,10.68085203,2124.1,2123.3,11.73106503]
[1770562621274,10.68631708,2124.1,2123.3,11.73106503]
[1770562621984,10.68085203,2124.0,2123.2,11.49541503]
[1770562630183,10.68085203,2123.9,2123.2,11.49541503]
[1770562636392,14.22206018,2124.0,2123.2,11.73108503]
[1770562636591,14.22206018,2124.0,2123.3,14.16246205]
[1770562636592,11.40142018,2124.0,2123.3,14.16246205]
[1770562637392,11.40142018,2124.0,2123.3,14.18324378]
[1770562638584,11.40688523,2124.1,2123.5,11.36551733]
[1770562640693,11.40688523,2124.1,2123.4,14.18324378]
[1770562642198,11.40688523,2124.1,2123.4,11.36551733]
[1770562644505,11.40688523,2124.1,2123.4,14.18324378]
[1770562645210,11.40688523,2124.1,2123.5,11.36551733]
[1770562645902,0.00546505,2124.1,2123.5,11.36551733]
[1770562646106,53.52670538,2124.8,2124.0,11.36551733]
[1770562646300,11.40142018,2124.8,2124.2,11.36551733]
[1770562647000,11.4069023,2124.8,2124.2,11.36943751]
[1770562648909,11.3459291,2124.8,2124.2,11.36943751]
[1770562649105,0.00548212,2124.8,2124.2,11.36943751]
[1770562649705,0.00158789,2124.8,2124.2,11.60499751]
[1770562649900,11.40142018,2125.1,2124.2,11.60499751]
[1770562650101,11.40142018,2125.1,2124.2,11.9476129]
[1770562650408,11.40142018,2125.4,2124.5,11.36551733]
[1770562651005,11.40753241,2125.4,2124.4,0.23553]
[1770562651212,11.40753241,2125.4,2124.4,11.60104733]
[1770562660718,11.41753241,2125.4,2124.4,11.60104733]
[1770562661115,11.41753241,2125.4,2124.2,0.34653557]
[1770562661116,11.41753241,2125.4,2124.6,11.36551733]
[1770562662514,11.41753241,2125.4,2124.6,11.60102733]
[1770562667624,0.01611223,2125.4,2124.6,11.60102733]
[1770562668621,0.01611223,2125.4,2124.7,0.2355]
[1770562668818,0.01611223,2125.4,2124.8,11.17477666]
[1770562670328,11.66762678,2125.4,2124.7,0.2355]
[1770562670521,11.66762678,2125.4,2124.7,11.41027666]
[1770562676231,11.66762678,2125.4,2124.8,11.17477666]
[1770562677937,11.66762678,2125.4,2124.7,14.20551977]
[1770562679134,11.66762678,2125.4,2124.8,11.17477666]
[1770562681837,11.66762678,2125.4,2124.7,2.79524311]
[1770562682039,11.65151455,2125.3,2124.6,2.79524311]
[1770562682236,11.65151455,2125.3,2124.6,13.97001977]
[1770562682538,11.65151455,2125.3,2124.6,2.79524311]
[1770562686335,11.65151455,2125.3,2124.5,2.79524311]
[1770562686744,11.65151455,2125.3,2124.5,13.97001977]
[1770562686936,11.65151455,2125.3,2124.6,11.17477666]
[1770562688440,53.77679975,2125.2,2124.3,2.79524311]
[1770562688638,11.65151455,2125.0,2124.3,2.79524311]
[1770562689035,11.65151455,2125.0,2124.2,7.58951649]
[1770562689237,11.65151455,2125.0,2124.2,3.37733868]
[1770562691140,11.65151455,2124.9,2124.2,0.34653557]
[1770562692449,11.65151455,2124.9,2124.2,0.00392018]
[1770562692635,11.65151455,2124.9,2124.0,11.51082638]
[1770562692834,11.65151455,2124.9,2124.0,0.33604972]
[1770562693042,11.65151455,2124.9,2123.9,13.97001977]
[1770562693747,11.65151455,2124.9,2124.0,11.17477666]
[1770562696850,11.65151455,2124.9,2123.9,0.00558581]
[1770562697050,11.69806711,2124.8,2123.9,0.33720849]
[1770562700539,11.69806711,2124.8,2123.9,11.9444395]
[1770562700739,7.02128222,2125.2,2123.9,11.9444395]